[Event "Early-Titled-Tuesday-Blitz-February-20-2024"]
[Site "Chess.com"]
[Date "2024.02.20"]
[Round "11"]
[White "AsaHoffmann"]
[Black "MaestroCheck"]
[Result "0-1"]
[WhiteElo "2372"]
[BlackElo "2549"]
[TimeControl "180+1"]
[EndTime "10:09:43 PST"]
[Termination "MaestroCheck won by checkmate"]

1. d4 {[%clk 0:02:58.2]} 1... d5 {[%clk 0:02:59.3]} 2. Bg5 {[%clk 0:02:55.9]}
2... f6 {[%clk 0:02:57.3]} 3. Bf4 {[%clk 0:02:55.5]} 3... Nc6 {[%clk 0:02:57.9]}
4. Nf3 {[%clk 0:02:55]} 4... g5 {[%clk 0:02:58.2]} 5. Bg3 {[%clk 0:02:54.6]}
5... g4 {[%clk 0:02:58.2]} 6. Nh4 {[%clk 0:02:54.4]} 6... f5 {[%clk 0:02:54.6]}
7. e3 {[%clk 0:02:52]} 7... e5 {[%clk 0:02:36.6]} 8. dxe5 {[%clk 0:02:47.8]}
8... Be7 {[%clk 0:02:37.2]} 9. Nc3 {[%clk 0:02:47.1]} 9... Bxh4 {[%clk
0:02:34.7]} 10. Qxd5 {[%clk 0:02:45.2]} 10... Bxg3 {[%clk 0:02:32.5]} 11. hxg3
{[%clk 0:02:41.9]} 11... Nge7 {[%clk 0:02:30.1]} 12. Qxd8+ {[%clk 0:02:30.5]}
12... Nxd8 {[%clk 0:02:29]} 13. f4 {[%clk 0:02:29.3]} 13... gxf3 {[%clk
0:02:25.9]} 14. gxf3 {[%clk 0:02:28.9]} 14... Bd7 {[%clk 0:02:22.7]} 15. O-O-O
{[%clk 0:02:28.2]} 15... Bc6 {[%clk 0:02:22.6]} 16. Be2 {[%clk 0:02:26.3]} 16...
Nf7 {[%clk 0:02:22.6]} 17. Nb5 {[%clk 0:02:13.5]} 17... Bxb5 {[%clk 0:02:13.9]}
18. Bxb5+ {[%clk 0:02:12.9]} 18... c6 {[%clk 0:02:14.6]} 19. Bc4 {[%clk
0:02:08.8]} 19... Nxe5 {[%clk 0:02:14.2]} 20. Be6 {[%clk 0:02:08.5]} 20... Rd8
{[%clk 0:02:07.1]} 21. Rdf1 {[%clk 0:02:07.5]} 21... Rd6 {[%clk 0:02:05.5]} 22.
Bb3 {[%clk 0:02:06.6]} 22... h5 {[%clk 0:01:59.6]} 23. e4 {[%clk 0:02:04.1]}
23... fxe4 {[%clk 0:01:57.4]} 24. fxe4 {[%clk 0:02:04]} 24... Rg6 {[%clk
0:01:56.4]} 25. Rh3 {[%clk 0:01:59.3]} 25... Rg5 {[%clk 0:01:55.1]} 26. Rfh1
{[%clk 0:01:54.2]} 26... N7g6 {[%clk 0:01:41.3]} 27. Be6 {[%clk 0:01:52.1]}
27... Ke7 {[%clk 0:01:40.2]} 28. Bf5 {[%clk 0:01:51.8]} 28... Kf6 {[%clk
0:01:29.1]} 29. Rf1 {[%clk 0:01:49.7]} 29... Kg7 {[%clk 0:01:28.7]} 30. Rd1
{[%clk 0:01:46.3]} 30... Ne7 {[%clk 0:01:27.7]} 31. Be6 {[%clk 0:01:42.6]} 31...
Kf6 {[%clk 0:01:21.5]} 32. Rd6 {[%clk 0:01:34.7]} 32... Nf7 {[%clk 0:01:04.8]}
33. Bxf7+ {[%clk 0:01:31.7]} 33... Kxf7 {[%clk 0:01:05]} 34. Rd7 {[%clk
0:01:25.9]} 34... Rb8 {[%clk 0:01:04.2]} 35. Kd2 {[%clk 0:01:24.1]} 35... Ke6
{[%clk 0:01:03.6]} 36. Rd3 {[%clk 0:01:23.8]} 36... Ng6 {[%clk 0:01:02.1]} 37.
Ke3 {[%clk 0:01:20.4]} 37... Ne5 {[%clk 0:01:02.4]} 38. Rb3 {[%clk 0:01:16.7]}
38... b5 {[%clk 0:00:57.7]} 39. a4 {[%clk 0:01:16]} 39... Rf8 {[%clk 0:00:55.8]}
40. axb5 {[%clk 0:01:14.7]} 40... Rf3+ {[%clk 0:00:56.2]} 41. Kd4 {[%clk
0:01:13.6]} 41... Rxb3 {[%clk 0:00:48.4]} 42. cxb3 {[%clk 0:01:13.5]} 42... cxb5
{[%clk 0:00:49.1]} 43. Kc5 {[%clk 0:01:10.1]} 43... Nd3+ {[%clk 0:00:46.4]} 44.
Kc6 {[%clk 0:01:09.2]} 44... Nf2 {[%clk 0:00:46.1]} 45. Rh4 {[%clk 0:01:07.2]}
45... Ke5 {[%clk 0:00:42.9]} 46. Kxb5 {[%clk 0:01:05]} 46... Nxe4 {[%clk
0:00:43.5]} 47. Ka6 {[%clk 0:01:03.5]} 47... Nxg3 {[%clk 0:00:38.5]} 48. b4
{[%clk 0:01:01.9]} 48... Nf5 {[%clk 0:00:37.4]} 49. Rh1 {[%clk 0:00:59.9]} 49...
h4 {[%clk 0:00:37.3]} 50. b5 {[%clk 0:00:59.8]} 50... Nd4 {[%clk 0:00:28.5]} 51.
Kxa7 {[%clk 0:00:58.9]} 51... Nxb5+ {[%clk 0:00:23]} 52. Kb6 {[%clk 0:00:58.3]}
52... Nd6 {[%clk 0:00:16]} 53. Rxh4 {[%clk 0:00:57.2]} 53... Kd5 {[%clk
0:00:16.6]} 54. Rh1 {[%clk 0:00:54.4]} 54... Nc4+ {[%clk 0:00:15.3]} 55. Kb5
{[%clk 0:00:52.1]} 55... Nxb2 {[%clk 0:00:13.7]} 56. Rh2 {[%clk 0:00:48.6]}
56... Nd3 {[%clk 0:00:12.2]} 57. Rh8 {[%clk 0:00:47.4]} 57... Kd4+ {[%clk
0:00:10.6]} 58. Kb6 {[%clk 0:00:41.6]} 58... Nf4 {[%clk 0:00:10.9]} 59. Rh4
{[%clk 0:00:39.7]} 59... Ke5 {[%clk 0:00:10.8]} 60. Rh1 {[%clk 0:00:38.8]} 60...
Nd5+ {[%clk 0:00:11.2]} 61. Kc5 {[%clk 0:00:38]} 61... Ne3 {[%clk 0:00:11.5]}
62. Kc6 {[%clk 0:00:37.4]} 62... Rg2 {[%clk 0:00:09.9]} 63. Re1 {[%clk
0:00:36.8]} 63... Rc2+ {[%clk 0:00:09.7]} 64. Kb5 {[%clk 0:00:36.3]} 64... Kd4
{[%clk 0:00:09.5]} 65. Kb6 {[%clk 0:00:34.6]} 65... Nd5+ {[%clk 0:00:09.2]} 66.
Kb7 {[%clk 0:00:33.5]} 66... Kc5 {[%clk 0:00:09.2]} 67. Re5 {[%clk 0:00:31.9]}
67... Rb2+ {[%clk 0:00:07.6]} 68. Kc8 {[%clk 0:00:31.5]} 68... Kd6 {[%clk
0:00:07.8]} 69. Rh5 {[%clk 0:00:29]} 69... Ne7+ {[%clk 0:00:07.9]} 70. Kd8
{[%clk 0:00:26.8]} 70... Rb8# {[%clk 0:00:08.4]} 0-1

[Event "Early-Titled-Tuesday-Blitz-February-20-2024"]
[Site "Chess.com"]
[Date "2024.02.20"]
[Round "11"]
[White "TigrVShlyape"]
[Black "sokidze"]
[Result "1-0"]
[WhiteElo "2919"]
[BlackElo "2793"]
[TimeControl "180+1"]
[EndTime "10:09:44 PST"]
[Termination "TigrVShlyape won by resignation"]

1. d4 {[%clk 0:03:00.9]} 1... d5 {[%clk 0:02:59.7]} 2. Bf4 {[%clk 0:02:59.1]}
2... Nf6 {[%clk 0:03:00]} 3. e3 {[%clk 0:02:59.1]} 3... e6 {[%clk 0:03:00.6]} 4.
Nf3 {[%clk 0:02:57.9]} 4... Bd6 {[%clk 0:03:01.3]} 5. Nbd2 {[%clk 0:02:49.9]}
5... O-O {[%clk 0:03:01]} 6. Bd3 {[%clk 0:02:47.8]} 6... c5 {[%clk 0:03:00.7]}
7. c3 {[%clk 0:02:47.1]} 7... Bxf4 {[%clk 0:03:01.3]} 8. exf4 {[%clk 0:02:46.9]}
8... b6 {[%clk 0:03:02]} 9. Qe2 {[%clk 0:02:46.5]} 9... a5 {[%clk 0:03:02.5]}
10. O-O {[%clk 0:02:42.9]} 10... Ba6 {[%clk 0:03:01.1]} 11. Bxa6 {[%clk
0:02:42.1]} 11... Nxa6 {[%clk 0:03:00]} 12. Rfe1 {[%clk 0:02:38.4]} 12... Qd6
{[%clk 0:02:54.9]} 13. g3 {[%clk 0:02:29]} 13... Rfc8 {[%clk 0:02:47.7]} 14. h4
{[%clk 0:02:23.8]} 14... h6 {[%clk 0:02:26.3]} 15. a3 {[%clk 0:02:21.2]} 15...
cxd4 {[%clk 0:02:14.6]} 16. Nxd4 {[%clk 0:02:20.5]} 16... Nc5 {[%clk 0:02:14.5]}
17. f5 {[%clk 0:02:18.9]} 17... Re8 {[%clk 0:02:07.7]} 18. fxe6 {[%clk
0:02:18.3]} 18... Nxe6 {[%clk 0:02:02.2]} 19. Nxe6 {[%clk 0:02:13.6]} 19... Rxe6
{[%clk 0:01:59.5]} 20. Qd3 {[%clk 0:02:12.8]} 20... Rae8 {[%clk 0:01:58.2]} 21.
Nf3 {[%clk 0:02:08.9]} 21... Qc5 {[%clk 0:01:47.5]} 22. Rxe6 {[%clk 0:02:04.1]}
22... Rxe6 {[%clk 0:01:46.3]} 23. Nd4 {[%clk 0:02:03.6]} 23... Re4 {[%clk
0:01:46.1]} 24. Rd1 {[%clk 0:02:00.5]} 24... g6 {[%clk 0:01:32.6]} 25. Kg2
{[%clk 0:01:59.6]} 25... Kg7 {[%clk 0:01:23.5]} 26. Nc2 {[%clk 0:01:48.1]} 26...
Ng4 {[%clk 0:00:56.5]} 27. Rd2 {[%clk 0:01:43.1]} 27... Nf6 {[%clk 0:00:53.7]}
28. Ne3 {[%clk 0:01:40.3]} 28... Re5 {[%clk 0:00:53.7]} 29. Qd4 {[%clk
0:01:37.8]} 29... Qxd4 {[%clk 0:00:53.4]} 30. Rxd4 {[%clk 0:01:37.1]} 30... Kf8
{[%clk 0:00:50.2]} 31. a4 {[%clk 0:01:34.3]} 31... Ke7 {[%clk 0:00:49.3]} 32.
Rd3 {[%clk 0:01:24.7]} 32... Re4 {[%clk 0:00:46.8]} 33. b3 {[%clk 0:01:24]}
33... Kd6 {[%clk 0:00:35.5]} 34. f3 {[%clk 0:01:20.6]} 34... Re6 {[%clk
0:00:25.1]} 35. g4 {[%clk 0:01:20.7]} 35... g5 {[%clk 0:00:20]} 36. h5 {[%clk
0:01:14.2]} 36... Kc5 {[%clk 0:00:18.3]} 37. Kf2 {[%clk 0:01:13.4]} 37... Rc6
{[%clk 0:00:10.2]} 38. Nf5 {[%clk 0:01:11.4]} 38... Nd7 {[%clk 0:00:09.3]} 39.
Re3 {[%clk 0:01:10.2]} 39... Rf6 {[%clk 0:00:04.6]} 40. Re7 {[%clk 0:01:09.1]}
40... Kc6 {[%clk 0:00:05]} 41. Ke3 {[%clk 0:01:07]} 41... Nc5 {[%clk 0:00:04.6]}
42. Nd4+ {[%clk 0:01:06.7]} 42... Kd6 {[%clk 0:00:03.9]} 43. Re8 {[%clk
0:01:06.8]} 43... Ne6 {[%clk 0:00:04]} 44. Nf5+ {[%clk 0:01:03.3]} 44... Ke5
{[%clk 0:00:04.1]} 45. b4 {[%clk 0:01:00.6]} 45... axb4 {[%clk 0:00:02.3]} 46.
cxb4 {[%clk 0:01:00.9]} 46... d4+ {[%clk 0:00:03.2]} 47. Nxd4 {[%clk 0:01:00.6]}
47... Kd5 {[%clk 0:00:03.8]} 48. Nxe6 {[%clk 0:00:56.9]} 48... fxe6 {[%clk
0:00:04.7]} 49. Rd8+ {[%clk 0:00:54.7]} 49... Kc6 {[%clk 0:00:02.5]} 50. Rg8
{[%clk 0:00:53.3]} 50... Kd5 {[%clk 0:00:01.5]} 51. Rg6 {[%clk 0:00:52.8]} 51...
Rf4 {[%clk 0:00:02]} 52. a5 {[%clk 0:00:51]} 52... Rxb4 {[%clk 0:00:01.9]} 53.
axb6 {[%clk 0:00:50.6]} 53... Rxb6 {[%clk 0:00:02.8]} 54. Rxh6 {[%clk
0:00:50.9]} 54... Rb3+ {[%clk 0:00:02.9]} 55. Kf2 {[%clk 0:00:50.7]} 55... Ke5
{[%clk 0:00:03.4]} 56. Rg6 {[%clk 0:00:50.7]} 56... Kf4 {[%clk 0:00:02.4]} 57.
Rf6+ {[%clk 0:00:51]} 57... Ke5 {[%clk 0:00:03]} 58. Rf7 {[%clk 0:00:51.5]}
58... Rb2+ {[%clk 0:00:03.1]} 59. Kg3 {[%clk 0:00:51.8]} 59... Rb1 {[%clk
0:00:03.7]} 60. h6 {[%clk 0:00:49]} 60... Rh1 {[%clk 0:00:03.8]} 61. h7 {[%clk
0:00:47.9]} 61... Rh6 {[%clk 0:00:04]} 62. f4+ {[%clk 0:00:45.8]} 62... gxf4+
{[%clk 0:00:03.5]} 63. Kf3 {[%clk 0:00:45.6]} 63... Rh3+ {[%clk 0:00:03.4]} 64.
Kg2 {[%clk 0:00:45.6]} 64... Rh4 {[%clk 0:00:03]} 65. g5 {[%clk 0:00:45.1]}
65... Ke4 {[%clk 0:00:01.4]} 66. g6 {[%clk 0:00:45.3]} 66... f3+ {[%clk
0:00:01.9]} 67. Rxf3 {[%clk 0:00:43.9]} 67... Rg4+ {[%clk 0:00:02.3]} 68. Rg3
{[%clk 0:00:44.3]} 1-0

[Event "Early-Titled-Tuesday-Blitz-February-20-2024"]
[Site "Chess.com"]
[Date "2024.02.20"]
[Round "11"]
[White "PavelShkapenko"]
[Black "zverr1"]
[Result "1-0"]
[WhiteElo "2715"]
[BlackElo "2551"]
[TimeControl "180+1"]
[EndTime "10:09:47 PST"]
[Termination "PavelShkapenko won by checkmate"]

1. e4 {[%clk 0:03:00.9]} 1... c5 {[%clk 0:02:59.8]} 2. c3 {[%clk 0:03:00.5]}
2... g6 {[%clk 0:02:59.8]} 3. d4 {[%clk 0:03:00.6]} 3... cxd4 {[%clk 0:03:00.7]}
4. cxd4 {[%clk 0:03:01.5]} 4... d5 {[%clk 0:03:01.1]} 5. Nc3 {[%clk 0:03:02.2]}
5... dxe4 {[%clk 0:03:01]} 6. Bc4 {[%clk 0:03:02.4]} 6... Nc6 {[%clk 0:03:01.6]}
7. Qb3 {[%clk 0:03:01]} 7... e6 {[%clk 0:03:00.5]} 8. d5 {[%clk 0:03:01.3]} 8...
Nd4 {[%clk 0:01:42.2]} 9. dxe6 {[%clk 0:02:59.4]} 9... Nxb3 {[%clk 0:01:14.7]}
10. exf7+ {[%clk 0:02:59.6]} 10... Kd7 {[%clk 0:01:12.4]} 11. fxg8=Q {[%clk
0:02:59.7]} 11... Rxg8 {[%clk 0:01:10.8]} 12. axb3 {[%clk 0:03:00.3]} 12... Bd6
{[%clk 0:00:45.5]} 13. Nge2 {[%clk 0:02:54.5]} 13... a6 {[%clk 0:00:42.6]} 14.
O-O {[%clk 0:02:54]} 14... Kc7 {[%clk 0:00:41.8]} 15. Rd1 {[%clk 0:02:49.7]}
15... Bg4 {[%clk 0:00:37.5]} 16. Nxe4 {[%clk 0:02:42.5]} 16... Bxe2 {[%clk
0:00:27.8]} 17. Bxe2 {[%clk 0:02:41.5]} 17... Qe7 {[%clk 0:00:28.3]} 18. Nxd6
{[%clk 0:01:46.4]} 18... Qxe2 {[%clk 0:00:27.5]} 19. Bf4 {[%clk 0:01:47]} 19...
Kb6 {[%clk 0:00:19.6]} 20. Rd4 {[%clk 0:01:17.6]} 20... Rad8 {[%clk 0:00:16.5]}
21. Rb4+ {[%clk 0:00:48.9]} 21... Kc5 {[%clk 0:00:16.8]} 22. Rc4+ {[%clk
0:00:42.4]} 22... Kb6 {[%clk 0:00:12.3]} 23. Be3+ {[%clk 0:00:40.4]} 23... Qxe3
{[%clk 0:00:11.9]} 24. fxe3 {[%clk 0:00:37.5]} 24... Rxd6 {[%clk 0:00:12.6]} 25.
Rf1 {[%clk 0:00:33]} 25... Re8 {[%clk 0:00:10.4]} 26. Rb4+ {[%clk 0:00:29]}
26... Ka7 {[%clk 0:00:07.7]} 27. Rf7 {[%clk 0:00:28.3]} 27... Rb6 {[%clk
0:00:08.4]} 28. Rxb6 {[%clk 0:00:27.1]} 28... Kxb6 {[%clk 0:00:09.3]} 29. Kf2
{[%clk 0:00:27.5]} 29... Re5 {[%clk 0:00:08.8]} 30. Rxh7 {[%clk 0:00:24.9]}
30... Rb5 {[%clk 0:00:09.4]} 31. Rg7 {[%clk 0:00:25.5]} 31... Rxb3 {[%clk
0:00:10.1]} 32. Rxg6+ {[%clk 0:00:25.5]} 32... Kb5 {[%clk 0:00:10.4]} 33. h4
{[%clk 0:00:25.2]} 33... Rxb2+ {[%clk 0:00:10.5]} 34. Kf3 {[%clk 0:00:25.8]}
34... a5 {[%clk 0:00:11.1]} 35. h5 {[%clk 0:00:25.4]} 35... Rb1 {[%clk
0:00:11.5]} 36. Rg3 {[%clk 0:00:17.6]} 36... Rf1+ {[%clk 0:00:09.1]} 37. Ke4
{[%clk 0:00:17.1]} 37... a4 {[%clk 0:00:04.7]} 38. Rg7 {[%clk 0:00:14]} 38... b6
{[%clk 0:00:04.2]} 39. g4 {[%clk 0:00:12.3]} 39... a3 {[%clk 0:00:04.3]} 40. Ra7
{[%clk 0:00:12.2]} 40... Kb4 {[%clk 0:00:03.8]} 41. h6 {[%clk 0:00:12.7]} 41...
Rh1 {[%clk 0:00:03.6]} 42. g5 {[%clk 0:00:12.8]} 42... Kb3 {[%clk 0:00:04.2]}
43. Rb7 {[%clk 0:00:09.9]} 43... a2 {[%clk 0:00:01.9]} 44. Rxb6+ {[%clk
0:00:10.2]} 44... Kc4 {[%clk 0:00:02.5]} 45. Ra6 {[%clk 0:00:10.6]} 45... a1=Q
{[%clk 0:00:02.1]} 46. Rxa1 {[%clk 0:00:11.1]} 46... Rxa1 {[%clk 0:00:02.8]} 47.
Kf5 {[%clk 0:00:11]} 47... Kd3 {[%clk 0:00:02]} 48. h7 {[%clk 0:00:11.3]} 48...
Rh1 {[%clk 0:00:02.3]} 49. g6 {[%clk 0:00:11.8]} 49... Kxe3 {[%clk 0:00:03]} 50.
g7 {[%clk 0:00:11.9]} 50... Rf1+ {[%clk 0:00:03.1]} 51. Ke5 {[%clk 0:00:11.7]}
51... Kf3 {[%clk 0:00:01.5]} 52. g8=Q {[%clk 0:00:11.6]} 52... Re1+ {[%clk
0:00:02.1]} 53. Kf5 {[%clk 0:00:12.1]} 53... Re4 {[%clk 0:00:02.7]} 54. Qd5
{[%clk 0:00:10.8]} 54... Kg3 {[%clk 0:00:02.3]} 55. Qxe4 {[%clk 0:00:10.9]}
55... Kf2 {[%clk 0:00:03.2]} 56. h8=Q {[%clk 0:00:10.7]} 56... Kg1 {[%clk
0:00:03.8]} 57. Qa1+ {[%clk 0:00:10.5]} 57... Kf2 {[%clk 0:00:04.7]} 58. Qa2+
{[%clk 0:00:11]} 58... Kg1 {[%clk 0:00:05.1]} 59. Qeb1# {[%clk 0:00:10.4]} 1-0

[Event "Early-Titled-Tuesday-Blitz-February-20-2024"]
[Site "Chess.com"]
[Date "2024.02.20"]
[Round "11"]
[White "Barmen_EV"]
[Black "Mikhail_Golubev"]
[Result "1/2-1/2"]
[WhiteElo "2515"]
[BlackElo "2629"]
[TimeControl "180+1"]
[EndTime "10:09:50 PST"]
[Termination "Game drawn by repetition"]

1. e4 {[%clk 0:02:59.1]} 1... c5 {[%clk 0:02:59.7]} 2. c3 {[%clk 0:02:59]} 2...
Nf6 {[%clk 0:02:57.7]} 3. e5 {[%clk 0:02:58.8]} 3... Nd5 {[%clk 0:02:58.2]} 4.
d4 {[%clk 0:02:59.5]} 4... cxd4 {[%clk 0:02:58.3]} 5. Nf3 {[%clk 0:02:59.9]}
5... Nc6 {[%clk 0:02:56.7]} 6. cxd4 {[%clk 0:03:00.5]} 6... d6 {[%clk
0:02:55.3]} 7. Bc4 {[%clk 0:03:01.2]} 7... Nb6 {[%clk 0:02:54.4]} 8. Bxf7+
{[%clk 0:03:01.7]} 8... Kxf7 {[%clk 0:02:49.9]} 9. e6+ {[%clk 0:03:01.7]} 9...
Kg8 {[%clk 0:02:09.2]} 10. d5 {[%clk 0:03:01.6]} 10... Ne5 {[%clk 0:01:52.9]}
11. Nxe5 {[%clk 0:03:01.5]} 11... dxe5 {[%clk 0:01:52.7]} 12. Nc3 {[%clk
0:03:02.4]} 12... Nxd5 {[%clk 0:01:45.3]} 13. Qxd5 {[%clk 0:03:01.3]} 13... Qxd5
{[%clk 0:01:04.2]} 14. Nxd5 {[%clk 0:03:02.2]} 14... b6 {[%clk 0:01:04.2]} 15.
O-O {[%clk 0:02:47.1]} 15... Bb7 {[%clk 0:01:01]} 16. Rd1 {[%clk 0:02:47.3]}
16... h6 {[%clk 0:00:46.9]} 17. Be3 {[%clk 0:02:44.7]} 17... Kh7 {[%clk
0:00:35.8]} 18. Rac1 {[%clk 0:02:32.2]} 18... Rc8 {[%clk 0:00:35.7]} 19. Nc7
{[%clk 0:02:29.8]} 19... g5 {[%clk 0:00:30.2]} 20. Rd7 {[%clk 0:02:28.4]} 20...
Rg8 {[%clk 0:00:29.7]} 21. b4 {[%clk 0:02:05.8]} 21... Rg6 {[%clk 0:00:28.5]}
22. b5 {[%clk 0:02:04.6]} 22... Be4 {[%clk 0:00:19]} 23. Na6 {[%clk 0:01:40.7]}
23... Rxc1+ {[%clk 0:00:17.9]} 24. Bxc1 {[%clk 0:01:40.5]} 24... Rxe6 {[%clk
0:00:18.2]} 25. f3 {[%clk 0:01:29.5]} 25... Bb1 {[%clk 0:00:18]} 26. Rxa7 {[%clk
0:01:14.7]} 26... Rd6 {[%clk 0:00:18.3]} 27. Ba3 {[%clk 0:00:56.2]} 27... Rd1+
{[%clk 0:00:17.3]} 28. Kf2 {[%clk 0:00:56.5]} 28... Bxa2 {[%clk 0:00:17.6]} 29.
Bxe7 {[%clk 0:00:54.6]} 29... Bxe7 {[%clk 0:00:17.9]} 30. Rxe7+ {[%clk
0:00:55.5]} 30... Kg6 {[%clk 0:00:15.7]} 31. Rxe5 {[%clk 0:00:54.8]} 31... Rd2+
{[%clk 0:00:14.5]} 32. Re2 {[%clk 0:00:43.3]} 32... Rxe2+ {[%clk 0:00:14.3]} 33.
Kxe2 {[%clk 0:00:41.9]} 33... Bc4+ {[%clk 0:00:15.2]} 34. Ke3 {[%clk 0:00:41.4]}
34... Bxb5 {[%clk 0:00:15.7]} 35. Nb4 {[%clk 0:00:40.5]} 35... Bc4 {[%clk
0:00:13.3]} 36. Kd4 {[%clk 0:00:34.3]} 36... b5 {[%clk 0:00:12.8]} 37. Ke5
{[%clk 0:00:31.2]} 37... h5 {[%clk 0:00:11.9]} 38. g3 {[%clk 0:00:30.9]} 38...
h4 {[%clk 0:00:11.8]} 39. gxh4 {[%clk 0:00:28.3]} 39... gxh4 {[%clk 0:00:11.8]}
40. f4 {[%clk 0:00:28.9]} 40... Kf7 {[%clk 0:00:09.9]} 41. f5 {[%clk 0:00:27.9]}
41... h3 {[%clk 0:00:10.1]} 42. f6 {[%clk 0:00:28.1]} 42... Bf1 {[%clk 0:00:10]}
43. Nc6 {[%clk 0:00:23.6]} 43... Bc4 {[%clk 0:00:09.6]} 44. Kf5 {[%clk
0:00:19.4]} 44... Bd3+ {[%clk 0:00:08.3]} 45. Kg5 {[%clk 0:00:19.9]} 45... Bf1
{[%clk 0:00:08.3]} 46. Ne5+ {[%clk 0:00:18.9]} 46... Kg8 {[%clk 0:00:06.1]} 47.
Kg6 {[%clk 0:00:18.4]} 47... Bc4 {[%clk 0:00:06.2]} 48. f7+ {[%clk 0:00:11]}
48... Bxf7+ {[%clk 0:00:06.7]} 49. Nxf7 {[%clk 0:00:11.9]} 49... b4 {[%clk
0:00:07.1]} 50. Ne5 {[%clk 0:00:10.5]} 50... b3 {[%clk 0:00:07.5]} 51. Nd3
{[%clk 0:00:08.3]} 51... Kf8 {[%clk 0:00:07.6]} 52. Kf5 {[%clk 0:00:08.3]} 52...
Ke7 {[%clk 0:00:08]} 53. Kg4 {[%clk 0:00:08.6]} 53... Kd6 {[%clk 0:00:08.6]} 54.
Kxh3 {[%clk 0:00:08.9]} 54... Kd5 {[%clk 0:00:09.3]} 55. Kg4 {[%clk 0:00:07]}
55... Kd4 {[%clk 0:00:09.7]} 56. Nb2 {[%clk 0:00:07.2]} 56... Kc3 {[%clk
0:00:09.9]} 57. Na4+ {[%clk 0:00:07.2]} 57... Kb4 {[%clk 0:00:09.5]} 58. Nb2
{[%clk 0:00:07.8]} 58... Kc3 {[%clk 0:00:09.9]} 59. Nd1+ {[%clk 0:00:04.1]}
59... Kd2 {[%clk 0:00:10.1]} 60. Nb2 {[%clk 0:00:03.8]} 60... Kc3 {[%clk
0:00:10.1]} 1/2-1/2

[Event "Early-Titled-Tuesday-Blitz-February-20-2024"]
[Site "Chess.com"]
[Date "2024.02.20"]
[Round "11"]
[White "manitodeplomo"]
[Black "vovachesss"]
[Result "1-0"]
[WhiteElo "2654"]
[BlackElo "2795"]
[TimeControl "180+1"]
[EndTime "10:09:53 PST"]
[Termination "manitodeplomo won on time"]

1. d4 {[%clk 0:02:40.3]} 1... d5 {[%clk 0:02:58.3]} 2. c4 {[%clk 0:02:39]} 2...
c6 {[%clk 0:02:58.9]} 3. Nf3 {[%clk 0:02:39]} 3... Nf6 {[%clk 0:02:59.5]} 4. Nc3
{[%clk 0:02:39.1]} 4... dxc4 {[%clk 0:03:00.1]} 5. e3 {[%clk 0:02:36.7]} 5... b5
{[%clk 0:02:58.9]} 6. a4 {[%clk 0:02:35.8]} 6... b4 {[%clk 0:02:51.8]} 7. Na2
{[%clk 0:02:36.1]} 7... a5 {[%clk 0:02:43.1]} 8. Bxc4 {[%clk 0:02:34.7]} 8...
Bf5 {[%clk 0:02:43.6]} 9. O-O {[%clk 0:02:34.1]} 9... e6 {[%clk 0:02:43.7]} 10.
Qe2 {[%clk 0:02:26.4]} 10... Be7 {[%clk 0:02:42.5]} 11. Rd1 {[%clk 0:02:24.5]}
11... O-O {[%clk 0:02:41.6]} 12. Ne5 {[%clk 0:02:24.6]} 12... Qb6 {[%clk
0:02:29.7]} 13. g4 {[%clk 0:02:01.9]} 13... Be4 {[%clk 0:02:23.2]} 14. f3 {[%clk
0:01:57.8]} 14... Bd5 {[%clk 0:02:23.2]} 15. e4 {[%clk 0:01:57.4]} 15... Bxc4
{[%clk 0:02:11.3]} 16. Nxc4 {[%clk 0:01:58.3]} 16... Qa6 {[%clk 0:02:03.3]} 17.
Be3 {[%clk 0:01:57.4]} 17... c5 {[%clk 0:01:57.5]} 18. g5 {[%clk 0:01:52.7]}
18... Nd5 {[%clk 0:01:15.8]} 19. exd5 {[%clk 0:00:52.4]} 19... exd5 {[%clk
0:01:16.7]} 20. b3 {[%clk 0:00:33.6]} 20... Nc6 {[%clk 0:01:10.7]} 21. dxc5
{[%clk 0:00:29.4]} 21... dxc4 {[%clk 0:01:05.2]} 22. Qxc4 {[%clk 0:00:28.8]}
22... Qxc4 {[%clk 0:01:04.1]} 23. bxc4 {[%clk 0:00:29.7]} 23... Ne5 {[%clk
0:00:59.7]} 24. f4 {[%clk 0:00:25.3]} 24... Nxc4 {[%clk 0:00:59.7]} 25. Bf2
{[%clk 0:00:25.1]} 25... Rac8 {[%clk 0:00:54.1]} 26. Nc1 {[%clk 0:00:23.1]}
26... Bxc5 {[%clk 0:00:46.8]} 27. Nb3 {[%clk 0:00:22.8]} 27... Bd6 {[%clk
0:00:37.4]} 28. Rd4 {[%clk 0:00:17.8]} 28... Rfe8 {[%clk 0:00:32.3]} 29. Rc1
{[%clk 0:00:17.3]} 29... Bxf4 {[%clk 0:00:07]} 30. Rcxc4 {[%clk 0:00:16.9]}
30... Rxc4 {[%clk 0:00:06.2]} 31. Rxc4 {[%clk 0:00:16.8]} 31... Bxg5 {[%clk
0:00:07.1]} 32. Nxa5 {[%clk 0:00:16.7]} 32... h5 {[%clk 0:00:05.4]} 33. Rxb4
{[%clk 0:00:15.9]} 33... h4 {[%clk 0:00:04.3]} 34. Bxh4 {[%clk 0:00:14.9]} 34...
Bd2 {[%clk 0:00:03.3]} 35. Rb5 {[%clk 0:00:15]} 35... Re4 {[%clk 0:00:02.7]} 36.
Bf2 {[%clk 0:00:12.9]} 36... Rxa4 {[%clk 0:00:02.9]} 37. Nb3 {[%clk 0:00:12.8]}
37... Bc3 {[%clk 0:00:02.6]} 38. Rc5 {[%clk 0:00:11.5]} 38... Bf6 {[%clk
0:00:02.4]} 39. Rc8+ {[%clk 0:00:11.8]} 39... Kh7 {[%clk 0:00:02.6]} 40. Rb8
{[%clk 0:00:09.3]} 40... Ra3 {[%clk 0:00:02.9]} 41. Kg2 {[%clk 0:00:09.4]} 41...
Ra2 {[%clk 0:00:03.5]} 42. Rb5 {[%clk 0:00:08.9]} 42... Rb2 {[%clk 0:00:03.8]}
43. Kf3 {[%clk 0:00:08.2]} 43... Rc2 {[%clk 0:00:03.9]} 44. h4 {[%clk
0:00:07.7]} 44... Rc3+ {[%clk 0:00:04.1]} 45. Kg2 {[%clk 0:00:07.9]} 45... Rc2
{[%clk 0:00:04.5]} 46. Kf3 {[%clk 0:00:07.7]} 46... Rc3+ {[%clk 0:00:04.9]} 47.
Ke2 {[%clk 0:00:07.7]} 47... Rh3 {[%clk 0:00:04.2]} 48. h5 {[%clk 0:00:06.9]}
48... g5 {[%clk 0:00:03]} 49. hxg6+ {[%clk 0:00:06.7]} 49... Kxg6 {[%clk
0:00:03.7]} 50. Nd4 {[%clk 0:00:06.5]} 50... Rc3 {[%clk 0:00:01.9]} 51. Nf3
{[%clk 0:00:06.3]} 51... Rc2+ {[%clk 0:00:02.4]} 52. Kf1 {[%clk 0:00:06.4]}
52... Rc4 {[%clk 0:00:03.1]} 53. Kg2 {[%clk 0:00:05.9]} 53... Rg4+ {[%clk
0:00:03.3]} 54. Kf1 {[%clk 0:00:06]} 54... Rf4 {[%clk 0:00:03.8]} 55. Ke2 {[%clk
0:00:06.1]} 55... Re4+ {[%clk 0:00:04.5]} 56. Be3 {[%clk 0:00:06.2]} 56... Rf4
{[%clk 0:00:05.4]} 57. Bxf4 {[%clk 0:00:06]} 1-0